[Event "*** Titled Tuesday Blitz"]
[Site "Chess.com"]
[Date "2021.04.20"]
[Round "2"]
[White "KubaGepard"]
[Black "MerryPoppies"]
[Result "1-0"]
[WhiteElo "2410"]
[BlackElo "2124"]
[TimeControl "180+1"]
[EndTime "10:16:12 PDT"]
[Termination "KubaGepard won by checkmate"]

1. d4 {[%clk 0:03:00.9]} 1... d5 {[%clk 0:02:58.9]} 2. Nf3 {[%clk 0:03:00.2]}
2... Nf6 {[%clk 0:02:58.6]} 3. Bf4 {[%clk 0:02:59.3]} 3... c6 {[%clk 0:02:54.8]}
4. c4 {[%clk 0:02:57.1]} 4... e6 {[%clk 0:02:54.8]} 5. e3 {[%clk 0:02:53.3]}
5... Bd6 {[%clk 0:02:55]} 6. Bg3 {[%clk 0:02:51.3]} 6... Bb4+ {[%clk 0:02:37.4]}
7. Nbd2 {[%clk 0:02:47.9]} 7... Ne4 {[%clk 0:02:37.1]} 8. a3 {[%clk 0:02:44.3]}
8... Bxd2+ {[%clk 0:02:19]} 9. Nxd2 {[%clk 0:02:42.3]} 9... Nxg3 {[%clk
0:01:57.1]} 10. hxg3 {[%clk 0:02:41.2]} 10... Nd7 {[%clk 0:01:57.2]} 11. Bd3
{[%clk 0:02:39.6]} 11... Nf6 {[%clk 0:01:57.4]} 12. g4 {[%clk 0:02:36.2]} 12...
dxc4 {[%clk 0:01:53.9]} 13. Nxc4 {[%clk 0:02:34.2]} 13... Qd5 {[%clk 0:01:44.6]}
14. f3 {[%clk 0:02:22.4]} 14... c5 {[%clk 0:01:02.2]} 15. dxc5 {[%clk
0:02:07.2]} 15... Qxc5 {[%clk 0:01:01.1]} 16. Kf2 {[%clk 0:02:07.2]} 16... b5
{[%clk 0:00:47.6]} 17. Na5 {[%clk 0:01:51]} 17... Nd5 {[%clk 0:00:40.6]} 18. Qc1
{[%clk 0:01:41.2]} 18... Qb6 {[%clk 0:00:31.6]} 19. Qc6+ {[%clk 0:01:36.9]}
19... Qxc6 {[%clk 0:00:31.7]} 20. Nxc6 {[%clk 0:01:37.1]} 20... a6 {[%clk
0:00:32.1]} 21. a4 {[%clk 0:01:18.9]} 21... bxa4 {[%clk 0:00:20.3]} 22. Rxa4
{[%clk 0:00:57.1]} 22... Bd7 {[%clk 0:00:20.4]} 23. Rc4 {[%clk 0:00:53.1]} 23...
O-O {[%clk 0:00:19.8]} 24. Bxh7+ {[%clk 0:00:48.7]} 24... Kh8 {[%clk 0:00:16.2]}
25. Be4+ {[%clk 0:00:48.8]} 25... Kg8 {[%clk 0:00:16]} 26. Bxd5 {[%clk
0:00:49.3]} 26... exd5 {[%clk 0:00:15.9]} 27. Ne7# {[%clk 0:00:49]} 1-0

[Event "*** Titled Tuesday Blitz"]
[Site "Chess.com"]
[Date "2021.04.20"]
[Round "2"]
[White "GMaka"]
[Black "fyall777"]
[Result "0-1"]
[WhiteElo "2482"]
[BlackElo "2326"]
[TimeControl "180+1"]
[EndTime "10:16:18 PDT"]
[Termination "fyall777 won by resignation"]

1. d4 {[%clk 0:03:00.9]} 1... e6 {[%clk 0:02:47.9]} 2. c4 {[%clk 0:02:57.2]}
2... d5 {[%clk 0:02:48.1]} 3. Nc3 {[%clk 0:02:56.3]} 3... Nf6 {[%clk 0:02:47.4]}
4. cxd5 {[%clk 0:02:54.4]} 4... exd5 {[%clk 0:02:43.9]} 5. Bg5 {[%clk
0:02:54.4]} 5... Be7 {[%clk 0:02:43]} 6. e3 {[%clk 0:02:54.4]} 6... O-O {[%clk
0:02:41.6]} 7. Bd3 {[%clk 0:02:54.5]} 7... c6 {[%clk 0:02:27.9]} 8. Qc2 {[%clk
0:02:53.2]} 8... h6 {[%clk 0:02:27.2]} 9. Bf4 {[%clk 0:02:48.3]} 9... Bd6 {[%clk
0:02:26.4]} 10. Bg3 {[%clk 0:02:46.4]} 10... Bxg3 {[%clk 0:02:26]} 11. hxg3
{[%clk 0:02:45.7]} 11... Re8 {[%clk 0:02:22.6]} 12. Nge2 {[%clk 0:02:40.1]}
12... Bg4 {[%clk 0:02:15.3]} 13. O-O {[%clk 0:02:31.4]} 13... Bxe2 {[%clk
0:02:12.9]} 14. Bxe2 {[%clk 0:02:23.8]} 14... Nbd7 {[%clk 0:02:12.7]} 15. Bd3
{[%clk 0:02:22.3]} 15... g6 {[%clk 0:02:00.1]} 16. Rae1 {[%clk 0:01:58.2]} 16...
Kg7 {[%clk 0:01:58.9]} 17. f3 {[%clk 0:01:58.1]} 17... h5 {[%clk 0:01:57.7]} 18.
e4 {[%clk 0:01:55.1]} 18... dxe4 {[%clk 0:01:57.5]} 19. fxe4 {[%clk 0:01:56]}
19... Ng4 {[%clk 0:01:51]} 20. Bc4 {[%clk 0:01:46.9]} 20... Ndf6 {[%clk
0:01:41.6]} 21. Qd2 {[%clk 0:01:35.8]} 21... b5 {[%clk 0:01:35.5]} 22. Bxf7
{[%clk 0:01:27.1]} 22... Kxf7 {[%clk 0:01:33.7]} 23. e5 {[%clk 0:01:21.1]} 23...
Nxe5 {[%clk 0:01:21.7]} 24. Rxf6+ {[%clk 0:01:14.8]} 24... Kxf6 {[%clk
0:01:21.4]} 25. Qf4+ {[%clk 0:01:06.7]} 25... Kg7 {[%clk 0:01:20.8]} 26. dxe5
{[%clk 0:01:07.3]} 26... Rf8 {[%clk 0:01:08.1]} 27. Qe4 {[%clk 0:01:07.2]} 27...
Qg5 {[%clk 0:01:04.7]} 28. Kh2 {[%clk 0:00:52]} 28... Rae8 {[%clk 0:00:49.4]}
29. Qxc6 {[%clk 0:00:44.9]} 29... h4 {[%clk 0:00:49.7]} 30. Qd7+ {[%clk
0:00:41.7]} 30... Re7 {[%clk 0:00:47.8]} 31. Qd4 {[%clk 0:00:29.8]} 31... Qxg3+
{[%clk 0:00:45.5]} 0-1

[Event "*** Titled Tuesday Blitz"]
[Site "Chess.com"]
[Date "2021.04.20"]
[Round "2"]
[White "GUST_b"]
[Black "AthanasiusLefebvre"]
[Result "1-0"]
[WhiteElo "2377"]
[BlackElo "2009"]
[TimeControl "180+1"]
[EndTime "10:16:18 PDT"]
[Termination "GUST_b won on time"]

1. Nf3 {[%clk 0:03:00.9]} 1... d6 {[%clk 0:02:57.2]} 2. g3 {[%clk 0:02:59.9]}
2... g6 {[%clk 0:02:57.9]} 3. Bg2 {[%clk 0:03:00.1]} 3... Bg7 {[%clk 0:02:57.7]}
4. O-O {[%clk 0:03:00.4]} 4... e6 {[%clk 0:02:58.1]} 5. d4 {[%clk 0:02:57.7]}
5... Ne7 {[%clk 0:02:58.4]} 6. c4 {[%clk 0:02:56.7]} 6... O-O {[%clk 0:02:58.9]}
7. Nc3 {[%clk 0:02:57]} 7... c5 {[%clk 0:02:55.3]} 8. e4 {[%clk 0:02:52.1]} 8...
Nbc6 {[%clk 0:02:51.1]} 9. Be3 {[%clk 0:02:51.6]} 9... cxd4 {[%clk 0:02:19.2]}
10. Nxd4 {[%clk 0:02:49.2]} 10... Ne5 {[%clk 0:02:09.3]} 11. b3 {[%clk
0:02:45.9]} 11... h5 {[%clk 0:02:07.3]} 12. h3 {[%clk 0:02:45.2]} 12... a6
{[%clk 0:02:05.6]} 13. f4 {[%clk 0:02:45.1]} 13... N5c6 {[%clk 0:02:03.9]} 14.
Rc1 {[%clk 0:02:45.1]} 14... Qc7 {[%clk 0:01:55.1]} 15. Nd5 {[%clk 0:02:26.7]}
15... Qa5 {[%clk 0:01:41.5]} 16. Nxc6 {[%clk 0:02:12.1]} 16... Nxc6 {[%clk
0:01:33]} 17. Nb6 {[%clk 0:02:11.8]} 17... Rb8 {[%clk 0:01:24.1]} 18. Qxd6
{[%clk 0:01:55.9]} 18... Rd8 {[%clk 0:01:08.4]} 19. Qc5 {[%clk 0:01:45.4]} 19...
Qxa2 {[%clk 0:01:06.4]} 20. Rfd1 {[%clk 0:01:42.3]} 20... Rxd1+ {[%clk
0:00:52.1]} 21. Rxd1 {[%clk 0:01:34.8]} 21... Qxb3 {[%clk 0:00:52.2]} 22. Re1
{[%clk 0:01:17.8]} 22... Qc3 {[%clk 0:00:31.6]} 23. Qd6 {[%clk 0:01:08]} 23...
Qxe1+ {[%clk 0:00:25.4]} 24. Kh2 {[%clk 0:01:08.3]} 24... Qxe3 {[%clk 0:00:23]}
25. Qc7 {[%clk 0:01:08.8]} 25... Bd4 {[%clk 0:00:15.5]} 26. h4 {[%clk 0:01:04]}
26... Bxb6 {[%clk 0:00:07.4]} 27. Qd6 {[%clk 0:01:03.9]} 1-0

[Event "*** Titled Tuesday Blitz"]
[Site "Chess.com"]
[Date "2021.04.20"]
[Round "2"]
[White "vovachesss"]
[Black "ybruned"]
[Result "1-0"]
[WhiteElo "2700"]
[BlackElo "2335"]
[TimeControl "180+1"]
[EndTime "10:16:19 PDT"]
[Termination "vovachesss won by resignation"]

1. d4 {[%clk 0:03:00.9]} 1... b6 {[%clk 0:02:59]} 2. e4 {[%clk 0:02:59.6]} 2...
Bb7 {[%clk 0:02:58.3]} 3. Nc3 {[%clk 0:03:00.3]} 3... e6 {[%clk 0:02:58.4]} 4.
Bd3 {[%clk 0:02:59.7]} 4... Bb4 {[%clk 0:02:57.6]} 5. Nf3 {[%clk 0:03:00.3]}
5... Nf6 {[%clk 0:02:56.4]} 6. Qe2 {[%clk 0:03:00.9]} 6... d5 {[%clk 0:02:56.1]}
7. e5 {[%clk 0:03:01.3]} 7... Ne4 {[%clk 0:02:56.6]} 8. Bd2 {[%clk 0:03:01.7]}
8... Nxd2 {[%clk 0:02:57.2]} 9. Qxd2 {[%clk 0:02:59.2]} 9... Be7 {[%clk
0:02:56.3]} 10. O-O {[%clk 0:02:58.7]} 10... c5 {[%clk 0:02:56.8]} 11. Bb5+
{[%clk 0:02:33.5]} 11... Bc6 {[%clk 0:02:55.4]} 12. Bxc6+ {[%clk 0:02:31.9]}
12... Nxc6 {[%clk 0:02:56.3]} 13. Ne2 {[%clk 0:02:32.6]} 13... O-O {[%clk
0:02:44.5]} 14. c3 {[%clk 0:02:31.7]} 14... cxd4 {[%clk 0:02:41.8]} 15. Nexd4
{[%clk 0:02:17.8]} 15... Nxd4 {[%clk 0:02:40.8]} 16. Nxd4 {[%clk 0:02:17.3]}
16... Bc5 {[%clk 0:02:41.4]} 17. f4 {[%clk 0:01:51.1]} 17... Bxd4+ {[%clk
0:02:31.4]} 18. cxd4 {[%clk 0:01:52]} 18... g6 {[%clk 0:02:29.8]} 19. Rac1
{[%clk 0:01:49.9]} 19... Rc8 {[%clk 0:02:30.2]} 20. Rc3 {[%clk 0:01:48.5]} 20...
Rxc3 {[%clk 0:02:03.1]} 21. Qxc3 {[%clk 0:01:48.6]} 21... Qc8 {[%clk 0:02:03.6]}
22. Rc1 {[%clk 0:01:48.6]} 22... Qa6 {[%clk 0:02:03.2]} 23. a3 {[%clk
0:01:41.3]} 23... Qe2 {[%clk 0:01:58.4]} 24. g3 {[%clk 0:01:39.8]} 24... h5
{[%clk 0:01:54.4]} 25. h4 {[%clk 0:01:37.7]} 25... Kg7 {[%clk 0:01:46.8]} 26.
Re1 {[%clk 0:01:37.2]} 26... Qb5 {[%clk 0:01:43]} 27. Kf2 {[%clk 0:01:37.3]}
27... Qc4 {[%clk 0:01:26.8]} 28. Rc1 {[%clk 0:01:19.1]} 28... Rc8 {[%clk
0:01:20.4]} 29. Qxc4 {[%clk 0:01:18.7]} 29... dxc4 {[%clk 0:01:16.3]} 30. Ke3
{[%clk 0:01:18.6]} 30... b5 {[%clk 0:01:15]} 31. b3 {[%clk 0:01:16.3]} 31... f5
{[%clk 0:01:10.6]} 32. Kd2 {[%clk 0:00:58.8]} 32... Rd8 {[%clk 0:00:57.2]} 33.
Ke3 {[%clk 0:00:46.5]} 33... Rc8 {[%clk 0:00:54.4]} 34. Kd2 {[%clk 0:00:37.6]}
34... Rd8 {[%clk 0:00:52.1]} 35. Kc3 {[%clk 0:00:37.9]} 35... cxb3 {[%clk
0:00:51.9]} 36. Rb1 {[%clk 0:00:38.1]} 36... Rxd4 {[%clk 0:00:52.8]} 37. Kxd4
{[%clk 0:00:37.9]} 1-0

[Event "*** Titled Tuesday Blitz"]
[Site "Chess.com"]
[Date "2021.04.20"]
[Round "2"]
[White "ChristopherYoo"]
[Black "RiskyDecision"]
[Result "1-0"]
[WhiteElo "2882"]
[BlackElo "2453"]
[TimeControl "180+1"]
[EndTime "10:16:22 PDT"]
[Termination "ChristopherYoo won by checkmate"]

1. d4 {[%clk 0:02:57.8]} 1... f5 {[%clk 0:02:58.9]} 2. Nf3 {[%clk 0:02:56.5]}
2... Nf6 {[%clk 0:02:58.6]} 3. c4 {[%clk 0:02:54.9]} 3... d6 {[%clk 0:02:58.2]}
4. g3 {[%clk 0:02:54.5]} 4... g6 {[%clk 0:02:58.7]} 5. Bg2 {[%clk 0:02:51.6]}
5... Bg7 {[%clk 0:02:58.2]} 6. O-O {[%clk 0:02:51.6]} 6... O-O {[%clk
0:02:58.5]} 7. Nc3 {[%clk 0:02:51.6]} 7... c6 {[%clk 0:02:58.2]} 8. b3 {[%clk
0:02:51.2]} 8... Qc7 {[%clk 0:02:57.3]} 9. Bb2 {[%clk 0:02:48.8]} 9... e5 {[%clk
0:02:57.4]} 10. dxe5 {[%clk 0:02:48.5]} 10... dxe5 {[%clk 0:02:58.3]} 11. e4
{[%clk 0:02:48.7]} 11... Na6 {[%clk 0:02:54.9]} 12. Qe2 {[%clk 0:02:46.8]} 12...
fxe4 {[%clk 0:02:47.1]} 13. Ng5 {[%clk 0:02:39.2]} 13... Nc5 {[%clk 0:02:32.3]}
14. Ngxe4 {[%clk 0:02:37.2]} 14... Ncxe4 {[%clk 0:02:27.8]} 15. Nxe4 {[%clk
0:02:38.1]} 15... Nxe4 {[%clk 0:02:28.5]} 16. Qxe4 {[%clk 0:02:35.5]} 16... Bf5
{[%clk 0:02:27.2]} 17. Qe3 {[%clk 0:02:35.1]} 17... a5 {[%clk 0:02:11.7]} 18.
Rfe1 {[%clk 0:02:08]} 18... Rfe8 {[%clk 0:02:07.3]} 19. Be4 {[%clk 0:01:58.1]}
19... Bxe4 {[%clk 0:01:58.3]} 20. Qxe4 {[%clk 0:01:59]} 20... Rad8 {[%clk
0:01:56.7]} 21. Rad1 {[%clk 0:01:56.5]} 21... Rxd1 {[%clk 0:01:42.8]} 22. Rxd1
{[%clk 0:01:57.4]} 22... Rd8 {[%clk 0:01:43.3]} 23. Rxd8+ {[%clk 0:01:52.3]}
23... Qxd8 {[%clk 0:01:43.3]} 24. Bxe5 {[%clk 0:01:52.3]} 24... Qe7 {[%clk
0:01:18.8]} 25. f4 {[%clk 0:01:50.5]} 25... Bxe5 {[%clk 0:01:00.1]} 26. fxe5
{[%clk 0:01:51.4]} 26... Qa3 {[%clk 0:00:57.5]} 27. e6 {[%clk 0:01:36.4]} 27...
Qc1+ {[%clk 0:00:36.8]} 28. Kg2 {[%clk 0:01:35.9]} 28... Qd2+ {[%clk 0:00:35.1]}
29. Kh3 {[%clk 0:01:36]} 29... Qh6+ {[%clk 0:00:27.6]} 30. Qh4 {[%clk
0:01:33.9]} 30... Qe3 {[%clk 0:00:11.8]} 31. Qd8+ {[%clk 0:01:25.9]} 31... Kg7
{[%clk 0:00:12.1]} 32. Qd7+ {[%clk 0:01:08.3]} 32... Kf8 {[%clk 0:00:07.5]} 33.
Qf7# {[%clk 0:01:07.7]} 1-0

[Event "*** Titled Tuesday Blitz"]
[Site "Chess.com"]
[Date "2021.04.20"]
[Round "2"]
[White "Andrii_Prydun"]
[Black "mac0504"]
[Result "1-0"]
[WhiteElo "2340"]
[BlackElo "2578"]
[TimeControl "180+1"]
[EndTime "10:16:23 PDT"]
[Termination "Andrii_Prydun won by checkmate"]

1. d4 {[%clk 0:03:00.9]} 1... Nf6 {[%clk 0:02:59]} 2. Nc3 {[%clk 0:03:01.5]}
2... d5 {[%clk 0:02:57.2]} 3. Bf4 {[%clk 0:03:02.1]} 3... g6 {[%clk 0:02:53.8]}
4. e3 {[%clk 0:03:01.6]} 4... Bg7 {[%clk 0:02:53]} 5. h4 {[%clk 0:03:01.2]} 5...
h5 {[%clk 0:02:52.6]} 6. Nf3 {[%clk 0:03:00.7]} 6... O-O {[%clk 0:02:52.6]} 7.
Be2 {[%clk 0:03:00.2]} 7... c6 {[%clk 0:02:49.3]} 8. Ne5 {[%clk 0:02:59.8]} 8...
Nfd7 {[%clk 0:02:46.4]} 9. Nd3 {[%clk 0:02:57.5]} 9... Nf6 {[%clk 0:02:28.3]}
10. f3 {[%clk 0:02:52.6]} 10... Be6 {[%clk 0:01:54.8]} 11. Nf2 {[%clk
0:02:51.2]} 11... Nbd7 {[%clk 0:01:50.9]} 12. e4 {[%clk 0:02:48.5]} 12... c5
{[%clk 0:01:38.8]} 13. e5 {[%clk 0:02:34.5]} 13... Ne8 {[%clk 0:01:37.6]} 14. g4
{[%clk 0:02:30.8]} 14... cxd4 {[%clk 0:01:29.8]} 15. Qxd4 {[%clk 0:02:30.1]}
15... hxg4 {[%clk 0:01:25.5]} 16. fxg4 {[%clk 0:02:17.1]} 16... f6 {[%clk
0:01:07.9]} 17. exf6 {[%clk 0:02:11.1]} 17... Bxf6 {[%clk 0:00:57.7]} 18. Qd2
{[%clk 0:02:05.6]} 18... Qb6 {[%clk 0:00:38.6]} 19. Nd3 {[%clk 0:01:53.3]} 19...
Nc5 {[%clk 0:00:25.3]} 20. Ne5 {[%clk 0:00:59]} 20... Bxe5 {[%clk 0:00:13.4]}
21. Bxe5 {[%clk 0:00:58.1]} 21... Nf6 {[%clk 0:00:03.8]} 22. Qh6 {[%clk
0:00:54.7]} 22... Bf7 {[%clk 0:00:03.5]} 23. g5 {[%clk 0:00:51.5]} 23... Qe6
{[%clk 0:00:01.9]} 24. Bd4 {[%clk 0:00:49.7]} 24... Ne8 {[%clk 0:00:01.3]} 25.
Qh8# {[%clk 0:00:49.1]} 1-0

[Event "*** Titled Tuesday Blitz"]
[Site "Chess.com"]
[Date "2021.04.20"]
[Round "2"]
[White "Deepweb2020"]
[Black "JakubPulpan"]
[Result "0-1"]
[WhiteElo "2502"]
[BlackElo "2738"]
[TimeControl "180+1"]
[EndTime "10:16:31 PDT"]
[Termination "JakubPulpan won on time"]

1. d4 {[%clk 0:03:00.9]} 1... Nf6 {[%clk 0:02:57.5]} 2. c4 {[%clk 0:02:59.7]}
2... e6 {[%clk 0:02:55.9]} 3. g3 {[%clk 0:02:59.8]} 3... d5 {[%clk 0:02:55.4]}
4. Nf3 {[%clk 0:02:59.5]} 4... Be7 {[%clk 0:02:54.5]} 5. Bg2 {[%clk 0:02:59.7]}
5... O-O {[%clk 0:02:55.4]} 6. O-O {[%clk 0:03:00.1]} 6... dxc4 {[%clk
0:02:56.1]} 7. Qc2 {[%clk 0:03:00.3]} 7... b6 {[%clk 0:02:55.7]} 8. Qxc4 {[%clk
0:02:55.3]} 8... Bb7 {[%clk 0:02:54.6]} 9. Bf4 {[%clk 0:02:53.7]} 9... c5 {[%clk
0:02:50.9]} 10. dxc5 {[%clk 0:02:44.9]} 10... Bxc5 {[%clk 0:02:49.3]} 11. Nc3
{[%clk 0:02:41.6]} 11... Nbd7 {[%clk 0:02:44.1]} 12. Rfd1 {[%clk 0:02:38.2]}
12... Qc8 {[%clk 0:02:40.6]} 13. e3 {[%clk 0:02:24.5]} 13... a6 {[%clk
0:02:36.8]} 14. Rac1 {[%clk 0:02:19.6]} 14... b5 {[%clk 0:02:36.9]} 15. Qd3
{[%clk 0:02:10.8]} 15... Bc6 {[%clk 0:02:27.6]} 16. a3 {[%clk 0:01:55.2]} 16...
Qb7 {[%clk 0:02:26.7]} 17. Ne1 {[%clk 0:01:51.3]} 17... Bxg2 {[%clk 0:02:25.3]}
18. Nxg2 {[%clk 0:01:50.3]} 18... Rac8 {[%clk 0:02:21.5]} 19. Nh4 {[%clk
0:01:30.5]} 19... h6 {[%clk 0:02:19]} 20. Bd6 {[%clk 0:01:30.3]} 20... Rfd8
{[%clk 0:02:08.9]} 21. Bxc5 {[%clk 0:01:29.3]} 21... Rxc5 {[%clk 0:02:03.6]} 22.
Ng2 {[%clk 0:01:13.6]} 22... Rdc8 {[%clk 0:02:00.4]} 23. Nf4 {[%clk 0:01:11.9]}
23... Ne5 {[%clk 0:01:52.1]} 24. Qd6 {[%clk 0:00:34.2]} 24... Nf3+ {[%clk
0:01:51.6]} 25. Kg2 {[%clk 0:00:20.5]} 25... Ne5+ {[%clk 0:01:24.6]} 26. Kg1
{[%clk 0:00:20.3]} 26... Nc4 {[%clk 0:01:24.7]} 27. Qd4 {[%clk 0:00:08.4]} 27...
Nxb2 {[%clk 0:01:23]} 28. Rd2 {[%clk 0:00:09]} 28... Na4 {[%clk 0:01:17.7]} 29.
Rdc2 {[%clk 0:00:06.8]} 29... e5 {[%clk 0:01:16.6]} 30. Qd2 {[%clk 0:00:03.2]}
30... Nxc3 {[%clk 0:01:16.9]} 31. Rxc3 {[%clk 0:00:03.2]} 31... Rxc3 {[%clk
0:01:17.8]} 32. Rxc3 {[%clk 0:00:02.2]} 32... Rxc3 {[%clk 0:01:18.7]} 33. Qxc3
{[%clk 0:00:01.4]} 33... exf4 {[%clk 0:01:19]} 34. exf4 {[%clk 0:00:01.1]} 34...
Qb6 {[%clk 0:01:18.9]} 35. Qe5 {[%clk 0:00:01.4]} 35... Ng4 {[%clk 0:01:15.4]}
36. Qb8+ {[%clk 0:00:01.8]} 36... Qxb8 {[%clk 0:01:15.4]} 0-1

[Event "*** Titled Tuesday Blitz"]
[Site "Chess.com"]
[Date "2021.04.20"]
[Round "2"]
[White "eCztery"]
[Black "dhaessel"]
[Result "1-0"]
[WhiteElo "2394"]
[BlackElo "2090"]
[TimeControl "180+1"]
[EndTime "10:16:32 PDT"]
[Termination "eCztery won on time"]

1. e4 {[%clk 0:02:11.4]} 1... e5 {[%clk 0:02:57.7]} 2. Nf3 {[%clk 0:02:11.2]}
2... Nc6 {[%clk 0:02:56.7]} 3. d4 {[%clk 0:02:05.7]} 3... exd4 {[%clk
0:02:55.2]} 4. Bc4 {[%clk 0:02:06.3]} 4... Nf6 {[%clk 0:02:33.5]} 5. O-O {[%clk
0:02:05.9]} 5... Nxe4 {[%clk 0:01:49.1]} 6. Re1 {[%clk 0:02:04.1]} 6... d5
{[%clk 0:01:46.7]} 7. Bxd5 {[%clk 0:02:04.2]} 7... Qxd5 {[%clk 0:01:45.9]} 8.
Nc3 {[%clk 0:02:03.8]} 8... Qd8 {[%clk 0:01:33]} 9. Nxe4 {[%clk 0:02:01.6]} 9...
Be7 {[%clk 0:01:24.5]} 10. Bg5 {[%clk 0:01:54.3]} 10... f6 {[%clk 0:00:57.7]}
11. Bxf6 {[%clk 0:01:39.4]} 11... gxf6 {[%clk 0:00:49.2]} 12. Nxf6+ {[%clk
0:01:40.3]} 12... Kf8 {[%clk 0:00:38.7]} 13. Ne4 {[%clk 0:01:15.2]} 13... Bf5
{[%clk 0:00:31.9]} 14. Qd2 {[%clk 0:01:14]} 14... Kg7 {[%clk 0:00:20.9]} 15.
Neg5 {[%clk 0:01:06.5]} 15... Rg8 {[%clk 0:00:18.2]} 16. Qf4 {[%clk 0:01:06.1]}
16... Qd7 {[%clk 0:00:16]} 17. Rad1 {[%clk 0:00:51.2]} 17... Kh8 {[%clk
0:00:14.6]} 18. Nf7+ {[%clk 0:00:34.7]} 18... Kg7 {[%clk 0:00:14.2]} 19. Nxd4
{[%clk 0:00:31.7]} 19... Kxf7 {[%clk 0:00:10.3]} 20. Nxf5 {[%clk 0:00:30.2]} 1-0

[Event "*** Titled Tuesday Blitz"]
[Site "Chess.com"]
[Date "2021.04.20"]
[Round "2"]
[White "Sadykov_Ramil"]
[Black "emperor87"]
[Result "0-1"]
[WhiteElo "2469"]
[BlackElo "2682"]
[TimeControl "180+1"]
[EndTime "10:16:36 PDT"]
[Termination "emperor87 won by checkmate"]

1. e4 {[%clk 0:02:59.9]} 1... d5 {[%clk 0:02:59.1]} 2. exd5 {[%clk 0:02:59.7]}
2... Qxd5 {[%clk 0:03:00]} 3. Nc3 {[%clk 0:03:00.1]} 3... Qd8 {[%clk 0:03:00]}
4. d4 {[%clk 0:02:59.8]} 4... c6 {[%clk 0:03:00.4]} 5. Nf3 {[%clk 0:02:56]} 5...
Bf5 {[%clk 0:03:00.9]} 6. Bc4 {[%clk 0:02:40.3]} 6... e6 {[%clk 0:03:00.5]} 7.
Ne5 {[%clk 0:02:29.2]} 7... Nd7 {[%clk 0:02:56.4]} 8. Bf4 {[%clk 0:02:15.4]}
8... Nxe5 {[%clk 0:02:53.1]} 9. Bxe5 {[%clk 0:01:59.9]} 9... Nf6 {[%clk
0:02:52.3]} 10. O-O {[%clk 0:01:53.8]} 10... Be7 {[%clk 0:02:52.1]} 11. Ne2
{[%clk 0:01:50.2]} 11... O-O {[%clk 0:02:51.2]} 12. c3 {[%clk 0:01:44]} 12... b5
{[%clk 0:02:45.4]} 13. Bb3 {[%clk 0:01:42.2]} 13... a5 {[%clk 0:02:44.6]} 14. a4
{[%clk 0:01:24.3]} 14... b4 {[%clk 0:02:44.1]} 15. c4 {[%clk 0:01:15]} 15... Nd7
{[%clk 0:02:34.6]} 16. Bc2 {[%clk 0:01:02.2]} 16... Nxe5 {[%clk 0:02:29.7]} 17.
Bxf5 {[%clk 0:01:00.3]} 17... Nf3+ {[%clk 0:02:25.4]} 18. gxf3 {[%clk
0:00:57.9]} 18... exf5 {[%clk 0:02:25.6]} 19. Qd3 {[%clk 0:00:50.3]} 19... g6
{[%clk 0:02:21.7]} 20. Rad1 {[%clk 0:00:35.9]} 20... Bd6 {[%clk 0:02:17.8]} 21.
f4 {[%clk 0:00:36.2]} 21... Re8 {[%clk 0:02:14.1]} 22. Rfe1 {[%clk 0:00:35]}
22... Ra7 {[%clk 0:02:12.8]} 23. Qf3 {[%clk 0:00:15.7]} 23... Rae7 {[%clk
0:02:08.8]} 24. Kf1 {[%clk 0:00:15.8]} 24... Re4 {[%clk 0:02:02.8]} 25. b3
{[%clk 0:00:12.7]} 25... Qh4 {[%clk 0:01:59.4]} 26. Qg3 {[%clk 0:00:08.5]} 26...
Qh5 {[%clk 0:01:56.5]} 27. Ng1 {[%clk 0:00:07.2]} 27... Bxf4 {[%clk 0:01:53.2]}
28. Qg2 {[%clk 0:00:02.1]} 28... Qxh2 {[%clk 0:01:43.9]} 29. Qxh2 {[%clk
0:00:01.9]} 29... Bxh2 {[%clk 0:01:43.6]} 30. Nf3 {[%clk 0:00:02.8]} 30... Bf4
{[%clk 0:01:43.6]} 31. d5 {[%clk 0:00:03]} 31... c5 {[%clk 0:01:41.5]} 32. Rxe4
{[%clk 0:00:02.2]} 32... fxe4 {[%clk 0:01:40.9]} 33. Ne1 {[%clk 0:00:01.5]}
33... Bd6 {[%clk 0:01:40.4]} 34. Ng2 {[%clk 0:00:01.8]} 34... f5 {[%clk
0:01:39.6]} 35. Ke2 {[%clk 0:00:02.2]} 35... Kg7 {[%clk 0:01:39.8]} 36. f4
{[%clk 0:00:02.6]} 36... exf3+ {[%clk 0:01:37.6]} 37. Kxf3 {[%clk 0:00:03.5]}
37... g5 {[%clk 0:01:37]} 38. Ne3 {[%clk 0:00:03.3]} 38... Kg6 {[%clk 0:01:36]}
39. Kf2 {[%clk 0:00:02.5]} 39... h5 {[%clk 0:01:34.9]} 40. Rh1 {[%clk
0:00:02.1]} 40... h4 {[%clk 0:01:34.9]} 41. Ng2 {[%clk 0:00:02.3]} 41... Bg3+
{[%clk 0:01:33.4]} 42. Kf3 {[%clk 0:00:02.6]} 42... g4# {[%clk 0:01:32.5]} 0-1

[Event "*** Titled Tuesday Blitz"]
[Site "Chess.com"]
[Date "2021.04.20"]
[Round "2"]
[White "Iskusnyh"]
[Black "yuki_chess123"]
[Result "1-0"]
[WhiteElo "2639"]
[BlackElo "2237"]
[TimeControl "180+1"]
[EndTime "10:16:39 PDT"]
[Termination "Iskusnyh won by resignation"]

1. d4 {[%clk 0:02:59.5]} 1... Nf6 {[%clk 0:02:56.7]} 2. c4 {[%clk 0:02:59.1]}
2... g6 {[%clk 0:02:54]} 3. g3 {[%clk 0:02:57.1]} 3... d6 {[%clk 0:02:53.5]} 4.
Bg2 {[%clk 0:02:56.9]} 4... Bg7 {[%clk 0:02:54.1]} 5. Nc3 {[%clk 0:02:57]} 5...
O-O {[%clk 0:02:54.7]} 6. Nf3 {[%clk 0:02:57.4]} 6... Nbd7 {[%clk 0:02:55.3]} 7.
O-O {[%clk 0:02:57.7]} 7... e5 {[%clk 0:02:55.9]} 8. e4 {[%clk 0:02:56.9]} 8...
Re8 {[%clk 0:02:56.1]} 9. h3 {[%clk 0:02:51.3]} 9... c6 {[%clk 0:02:56.3]} 10.
Re1 {[%clk 0:02:49]} 10... exd4 {[%clk 0:02:56.1]} 11. Nxd4 {[%clk 0:02:48.7]}
11... Nc5 {[%clk 0:02:56.2]} 12. Qc2 {[%clk 0:02:15.8]} 12... Bd7 {[%clk
0:02:43.1]} 13. Bf4 {[%clk 0:02:01.1]} 13... Nh5 {[%clk 0:02:33.4]} 14. Be3
{[%clk 0:01:58.5]} 14... Qc8 {[%clk 0:02:29.5]} 15. Kh2 {[%clk 0:01:55.4]} 15...
Nf6 {[%clk 0:02:25.1]} 16. Rad1 {[%clk 0:01:52.3]} 16... Re5 {[%clk 0:02:22.2]}
17. f3 {[%clk 0:01:25.2]} 17... Bxh3 {[%clk 0:01:36]} 18. Bxh3 {[%clk
0:01:20.2]} 18... Rh5 {[%clk 0:01:33.8]} 19. Qg2 {[%clk 0:01:10.2]} 19... Ng4+
{[%clk 0:01:29.4]} 20. fxg4 {[%clk 0:01:04.4]} 20... Qxg4 {[%clk 0:01:30.1]} 21.
Rh1 {[%clk 0:00:52.5]} 21... Be5 {[%clk 0:01:23.1]} 22. Kg1 {[%clk 0:00:50.9]}
22... Qxg3 {[%clk 0:01:16.4]} 23. Qxg3 {[%clk 0:00:49.6]} 23... Bxg3 {[%clk
0:01:16.6]} 24. Bg2 {[%clk 0:00:48.6]} 24... Rxh1+ {[%clk 0:01:07.2]} 25. Bxh1
{[%clk 0:00:47.3]} 25... Re8 {[%clk 0:01:06.4]} 26. Bf3 {[%clk 0:00:46.7]} 26...
f5 {[%clk 0:01:04.6]} 27. Kg2 {[%clk 0:00:42.3]} 27... Bh4 {[%clk 0:00:57]} 28.
Nb3 {[%clk 0:00:36.6]} 28... fxe4 {[%clk 0:00:54.4]} 29. Be2 {[%clk 0:00:34.7]}
29... Nxb3 {[%clk 0:00:51.9]} 30. axb3 {[%clk 0:00:35.6]} 30... Re6 {[%clk
0:00:41.2]} 31. Bg4 {[%clk 0:00:34.8]} 31... Re5 {[%clk 0:00:36.2]} 32. Rxd6
{[%clk 0:00:34.1]} 32... Be7 {[%clk 0:00:29.1]} 33. Rd7 {[%clk 0:00:33.2]} 1-0